bitfinex/quotes_SOLUSD_20220226
["timestamp","ask_amount","ask_price","bid_price","bid_amount"]
[1645905896679,19.89961066,91.066,91.016,55.12646315]
[1645905899103,1.60249476,91.067,91.016,55.12646315]
[1645905906613,22.5321,91.068,91.016,55.12646315]
[1645905907311,16.4878,91.06,90.995,24.9061]
[1645905907511,1.68943894,91.059,90.995,24.9061]
[1645905907712,5.85642135,91.067,90.995,24.9061]
[1645905908615,7.16003464,91.049,90.995,24.9061]
[1645905908813,22.7875,91.048,90.995,24.9061]
[1645905909014,1.75709462,91.047,90.995,24.9061]
[1645905910416,1.75709462,91.047,90.986,4.393]
[1645905910616,4.394,91.046,90.986,4.393]
[1645905910817,5.82844321,91.046,90.986,4.393]
[1645905911315,5.82844321,91.046,90.987,56.15136321]
[1645905912117,5.82844321,91.046,90.986,4.393]
[1645905914223,1.49812472,91.044,90.986,4.393]
[1645905914419,4.394,91.043,90.986,4.393]
[1645905915022,4.394,91.043,90.972,51.98158217]
[1645905915626,4.394,91.043,90.945,23.8762]
[1645905915825,12.264,91.043,90.946,22.5359]
[1645905916024,3.01679662,91.042,90.946,22.5359]
[1645905916225,4.394,91.041,90.946,22.5359]
[1645905916624,4.394,91.041,90.947,51.82858166]
[1645905916829,4.394,91.041,90.946,22.5359]
[1645905917026,111.66070472,91.039,90.946,22.5359]
[1645905917228,110.2,91.037,90.946,22.5359]
[1645905917426,1.54805136,91.036,90.946,22.5359]
[1645905917630,16.4992,91.01,90.946,22.5359]
[1645905917829,45.13083388,91.009,90.947,50.30939231]
[1645905918028,1.41854286,91.008,90.947,50.30939231]
[1645905919027,43.43382207,91.009,90.947,50.30939231]
[1645905922731,1.76833788,91.008,90.947,50.30939231]
[1645905923232,43.43382207,91.009,90.947,50.30939231]
[1645905924033,1.53925216,91.008,90.947,50.30939231]
[1645905924232,16.4993,91.0,90.947,50.30939231]
[1645905928837,1.54709971,90.999,90.947,50.30939231]
[1645905929239,22.6923,90.998,90.947,50.30939231]
[1645905934182,1.77900067,90.997,90.947,50.30939231]
[1645905934984,1.77900067,90.997,90.926,22.7668]
[1645905935283,16.5012,90.99,90.926,22.7668]
[1645905936084,5.49012346,90.989,90.927,50.40265376]
[1645905940001,16.5029,90.98,90.927,50.40265376]
[1645905940390,24.167,90.979,90.927,50.40265376]
[1645905946199,16.5049,90.97,90.912,22.7373]
[1645905946399,5.99643054,90.969,90.912,22.7373]
[1645905946598,29.80913054,90.969,90.912,22.7373]
[1645905946798,1.6622909,90.968,90.912,22.7373]
[1645905946998,4.398,90.967,90.912,22.7373]
[1645905947200,20.71652207,90.966,90.913,52.64818582]
[1645905947401,6.25491014,90.965,90.913,52.64818582]
[1645905947600,16.508,90.96,90.913,52.64818582]
[1645905947800,23.1705,90.959,90.913,52.64818582]
[1645905951520,1.5796056,90.958,90.913,52.64818582]
[1645905953022,1.5796056,90.958,90.901,24.9029]
[1645905953925,1.5796056,90.958,90.902,47.89865536]
[1645905958430,23.1705,90.959,90.902,47.89865536]
[1645905963932,4.398,90.958,90.902,47.89865536]
[1645905964133,1.58207596,90.958,90.902,47.89865536]
[1645905964533,5.98007596,90.958,90.902,47.89865536]
[1645905965134,1.58207596,90.958,90.902,47.89865536]
[1645905965536,23.1705,90.959,90.902,47.89865536]
[1645905969540,4.398,90.965,90.902,47.89865536]
[1645905969742,23.0031,90.979,90.903,110.2]
[1645905970042,4.398,90.988,90.904,2.74678921]
[1645905970244,6.19494652,90.997,90.904,2.74678921]
[1645905970442,24.1514713,90.996,90.904,2.74678921]
[1645905970644,1.59762878,90.995,90.904,2.74678921]
[1645905971347,24.1613,90.994,90.904,2.74678921]
[1645905971544,16.501,90.99,90.91,16.5014]
[1645905972346,4.398,90.989,90.91,16.5014]
[1645905972948,16.503,90.98,90.91,16.5014]
[1645905973646,4.398,90.987,90.911,2.74678921]
[1645905973852,1.40320489,90.993,90.912,23.4085]
[1645905974149,1.40320489,90.993,90.912,26.15528921]
[1645905974550,16.5012,90.99,90.912,26.15528921]
[1645905974749,4.397,90.989,90.912,26.15528921]
[1645905975351,16.5012,90.99,90.912,26.15528921]
[1645905977253,16.5012,90.99,90.912,23.4085]
[1645905977254,1.82561925,90.989,90.912,23.4085]
[1645905977455,16.5031,90.98,90.912,23.4085]
[1645905977656,26.05000676,90.979,90.912,23.4085]
[1645905977853,1.39199758,90.978,90.912,23.4085]
[1645905978054,24.2547,90.979,90.912,23.4085]
[1645905978253,4.398,90.978,90.912,23.4085]
[1645905980963,1.58650964,90.969,90.884,2.74678921]
[1645905981164,4.399,90.968,90.884,2.74678921]
[1645905981373,110.2,90.966,90.816,11.49463412]
[1645905981568,110.2,90.964,90.815,2.44610271]
[1645905981770,110.2,90.962,90.839,16.3766]
[1645905981967,7.82713231,90.961,90.886,162.79232685]
[1645905982267,1.70388977,90.959,90.886,112.2]
[1645905982468,110.2,90.949,90.886,112.2]
[1645905982670,4.399,90.948,90.886,112.2]
[1645905983068,4.04637458,90.947,90.886,112.2]
[1645905983268,6.06497708,90.946,90.886,112.2]
[1645905983674,22.00862517,90.929,90.886,112.2]
[1645905983974,6.1341903,90.928,90.886,112.2]
[1645905984275,6.1341903,90.928,90.861,49.48692856]
[1645905984673,16.5148,90.92,90.861,49.48692856]
[1645905984873,6.03478485,90.919,90.861,49.48692856]
[1645905985273,4.4,90.919,90.861,49.48692856]
[1645905985473,4.4,90.926,90.861,49.48692856]
[1645905986575,1.80244917,90.909,90.861,49.48692856]
[1645905986976,6.0514198,90.927,90.861,49.48692856]
[1645905987776,6.0514198,90.927,90.844,112.2]
[1645905988476,16.5168,90.9,90.844,112.2]
[1645905988878,5.98828028,90.899,90.845,50.86613251]
[1645905989077,16.5168,90.9,90.845,50.86613251]
[1645905991983,16.5168,90.9,90.845,50.78786251]
[1645905992885,23.7986,90.908,90.845,50.78786251]
[1645905993086,1.84184348,90.907,90.845,50.78786251]
[1645905993688,1.84184348,90.907,90.845,50.65923251]
[1645905995094,23.7986,90.908,90.845,50.65923251]
[1645905995290,16.516,90.91,90.846,4.401]
[1645905995490,4.401,90.926,90.846,110.2]
[1645905995690,1.81142062,90.948,90.85,9.18343667]
[1645905995893,7.59057719,91.135,90.85,9.18343667]
[1645905995894,1.5163732,90.979,90.852,2.69023896]
[1645905996090,1.5163732,90.979,90.854,113.08625814]
[1645905996291,1.5163732,90.979,90.886,112.2]
[1645905996491,16.5028,90.99,90.9,16.5025]
[1645905996691,6.07655468,90.989,90.9,16.5025]
[1645905996897,4.398,90.989,90.9,16.5025]
[1645905997194,1.84264276,91.009,90.901,7.14478921]
[1645905997195,4.398,91.008,90.901,7.14478921]
[1645905997593,26.01816242,91.007,90.902,48.95262856]
[1645905997793,5.84839576,91.006,90.903,4.397]
[1645905997994,23.6452,91.005,90.903,7.14378921]
[1645905998193,5.8179915,91.004,90.903,7.14378921]
[1645905998395,5.8179915,91.004,90.903,2.74678921]
[1645905998693,1.43427061,90.999,90.91,16.5009]
[1645905998893,4.397,90.998,90.91,16.5009]
[1645905999294,24.56938255,90.997,90.904,4.397]
[1645905999499,5.7959628,90.996,90.904,4.397]
[1645905999697,6.3301449,90.996,90.903,4.398]
[1645905999899,25.99938146,90.995,90.902,46.20583935]
[1645906000099,0.39538311,90.993,90.902,46.20583935]
[1645906000399,15.86,90.99,90.902,46.20583935]
[1645906000599,5.84664625,90.989,90.902,46.20583935]
[1645906001200,110.2,90.987,90.902,46.20583935]
[1645906001402,6.14208158,90.986,90.902,46.20583935]
[1645906001599,30.71146413,90.986,90.902,46.20583935]
[1645906001799,4.01156532,90.985,90.902,46.20583935]
[1645906002003,4.398,90.984,90.902,46.20583935]
[1645906002201,16.5049,90.98,90.902,46.20583935]
[1645906002430,32.03763156,90.979,90.902,46.20583935]
[1645906002603,1.72061277,90.978,90.902,46.20583935]
[1645906002801,4.398,90.977,90.902,46.20583935]
[1645906003002,1.72061277,90.978,90.902,46.20583935]
[1645906003203,0.5341821,90.976,90.902,46.20583935]
[1645906003404,4.398,90.975,90.902,46.20583935]
[1645906004005,4.9321821,90.977,90.902,46.20583935]
[1645906004508,16.5073,90.97,90.902,46.20583935]
[1645906004719,1.825015,90.969,90.902,46.20583935]
[1645906009711,6.223015,90.969,90.902,46.20583935]
[1645906011133,1.825015,90.969,90.902,46.20583935]
[1645906012935,1.87367776,90.969,90.902,46.20583935]
[1645906013433,6.27167776,90.969,90.902,46.20583935]
[1645906016138,1.87367776,90.969,90.902,46.20583935]
[1645906018241,22.7876,90.978,90.902,46.20583935]
[1645906026157,4.398,90.977,90.902,46.20583935]
[1645906026357,6.06896645,90.977,90.902,46.20583935]
[1645906027461,16.5068,90.97,90.902,46.20583935]
[1645906027658,5.82646896,90.969,90.902,46.20583935]
[1645906030664,16.5084,90.96,90.902,46.20583935]
[1645906030864,6.66697194,90.959,90.891,24.9366]
[1645906031066,29.50137194,90.959,90.891,24.9366]
[1645906031265,1.62364436,90.958,90.891,24.9366]
[1645906031463,4.399,90.957,90.891,24.9366]
[1645906031665,6.02264436,90.958,90.891,24.9366]
[1645906031866,6.02264436,90.958,90.892,51.46256462]
[1645906032467,1.62364436,90.958,90.892,51.46256462]
[1645906032969,16.5103,90.95,90.892,51.46256462]
[1645906033169,1.85491843,90.949,90.892,51.46256462]
[1645906033572,4.399,90.948,90.892,51.46256462]
[1645906033781,4.399,90.948,90.877,4.398]
[1645906033970,1.45471391,90.947,90.877,4.398]
[1645906034170,4.399,90.946,90.877,4.398]
[1645906034769,24.46539065,90.945,90.878,55.69827168]
[1645906035171,1.82648224,90.944,90.878,55.69827168]
[1645906035370,4.399,90.943,90.878,55.69827168]
[1645906035570,16.5117,90.94,90.878,55.69827168]
[1645906035769,6.12577252,90.939,90.878,55.69827168]
[1645906038188,1.72577252,90.939,90.878,55.69827168]
[1645906048900,16.5135,90.93,90.878,55.69827168]
[1645906049099,1.94815488,90.929,90.878,55.69827168]
[1645906053205,1.94815488,90.929,90.878,55.19827168]
[1645906057611,1.94815488,90.929,90.878,54.69827168]
[1645906060213,24.75965488,90.929,90.878,54.69827168]
[1645906060813,24.75965488,90.929,90.877,4.398]
[1645906061813,16.5144,90.92,90.877,4.398]
[1645906062614,16.5144,90.92,90.862,24.8416]
[1645906063118,1.64380775,90.919,90.862,24.8416]
[1645906063315,16.517,90.91,90.84,112.2]
[1645906063516,24.68632018,90.909,90.841,23.3559]
[1645906063720,111.79972933,90.908,90.841,23.3559]
[1645906063917,30.00600326,90.907,90.842,60.88761355]
[1645906064119,111.98180214,90.906,90.842,60.88761355]
[1645906064317,5.79670833,90.905,90.842,60.88761355]
[1645906065518,16.5179,90.9,90.842,60.88761355]
[1645906065724,1.45242212,90.899,90.842,60.88761355]
[1645906066323,28.4421,90.898,90.842,60.88761355]
[1645906066523,1.66843251,90.897,90.842,60.88761355]
[1645906066723,4.401,90.896,90.842,60.88761355]
[1645906067524,16.5208,90.89,90.842,60.88761355]
[1645906067723,3.4037352,90.889,90.842,60.88761355]
[1645906070743,3.4037352,90.889,90.822,24.7741]
[1645906070947,16.5214,90.88,90.822,24.7741]
[1645906071546,25.46217736,90.879,90.822,24.7741]
[1645906071743,1.8589084,90.878,90.822,24.7741]
[1645906071944,16.5259,90.87,90.822,24.7741]
[1645906072143,16.5259,90.87,90.818,46.2593271]
[1645906072343,16.5259,90.87,90.783,16.4628]
[1645906072344,19.96175596,90.869,90.802,23.1289]
[1645906072543,1.84978986,90.868,90.802,23.1289]
[1645906073246,1.47500767,90.866,90.802,23.1289]
[1645906073449,16.5262,90.86,90.803,55.31204231]
[1645906075645,24.1108,90.867,90.803,55.31204231]
[1645906080253,23.1826,90.879,90.803,55.31204231]
[1645906080453,25.81815549,90.878,90.803,55.31204231]
[1645906082555,16.5233,90.87,90.803,55.31204231]
[1645906083455,4.402,90.869,90.803,55.31204231]
[1645906083652,4.402,90.876,90.803,55.31204231]
[1645906084456,16.5253,90.86,90.803,55.31204231]
[1645906084656,20.67457021,90.858,90.803,55.31204231]
[1645906086763,20.67457021,90.858,90.802,23.1289]
[1645906086961,16.527,90.85,90.802,23.1289]
[1645906087162,1.61942914,90.849,90.787,24.1279]
[1645906087563,15.86,90.85,90.787,24.1279]
[1645906087762,1.53404643,90.849,90.788,59.98967158]
[1645906087963,4.404,90.848,90.788,59.98967158]
[1645906088367,1.53404643,90.849,90.788,59.98967158]
[1645906088566,8.55439909,90.839,90.788,59.98967158]
[1645906088869,1.81542377,90.839,90.788,59.98967158]
[1645906089363,24.2929,90.848,90.788,59.98967158]
[1645906094768,4.404,90.858,90.788,59.98967158]
[1645906094970,4.404,90.869,90.788,68.27967158]
[1645906095168,0.51927501,104.93,90.798,112.50729515]
[1645906095169,23.3794,90.899,90.798,112.50729515]
[1645906095369,26.90165038,90.925,90.801,110.2]
[1645906095569,50.28105038,90.925,90.803,110.2]
[1645906095767,50.28105038,90.925,90.804,4.652]
[1645906095967,50.28105038,90.925,90.805,110.2]
[1645906096168,4.402,90.924,90.811,110.2]
[1645906096367,4.402,90.924,90.812,2.73137104]
[1645906096572,4.402,90.924,90.821,110.2]
[1645906096769,4.402,90.924,90.825,110.2]
[1645906096970,50.28105038,90.925,90.826,4.401]
[1645906097371,50.28105038,90.925,90.828,110.2]
[1645906097573,4.401,90.924,90.828,110.2]
[1645906097771,4.401,90.924,90.829,2.74678921]
[1645906098471,4.401,90.924,90.84,16.513]
[1645906098672,4.401,90.924,90.841,78.47921781]
[1645906099074,6.11603159,90.924,90.841,78.47921781]
[1645906100375,5.76842852,90.924,90.841,78.47921781]
[1645906100973,4.401,90.924,90.841,78.47921781]
[1645906103274,4.401,90.924,90.841,82.88021781]
[1645906104083,23.3794,90.925,90.841,82.88021781]
[1645906104275,23.3794,90.925,90.85,16.5122]
[1645906106777,23.3794,90.925,90.85,32.7157]
[1645906107378,23.3794,90.925,90.85,16.5122]
[1645906107778,4.401,90.924,90.85,16.5122]
[1645906108178,16.5153,90.92,90.841,78.47921781]
[1645906108378,4.401,90.919,90.841,78.47921781]
[1645906108577,6.00385863,90.919,90.841,78.47921781]
[1645906110678,1.60285863,90.919,90.841,78.47921781]
[1645906113086,4.401,90.924,90.841,78.47921781]
[1645906113284,23.3794,90.925,90.842,4.401]
[1645906113684,5.84392508,90.924,90.841,78.47921781]
[1645906114583,5.84392508,90.924,90.85,16.5123]
[1645906116285,1.44292508,90.924,90.842,4.401]
[1645906116485,5.84392508,90.924,90.841,78.47921781]
[1645906116885,16.5152,90.92,90.841,78.47921781]
[1645906117085,1.5232732,90.919,90.841,78.47921781]
[1645906118391,4.401,90.918,90.841,78.47921781]
[1645906119089,1.5232732,90.919,90.841,78.47921781]
[1645906119292,4.401,90.918,90.841,78.47921781]
[1645906119789,1.5232732,90.919,90.841,78.47921781]
[1645906119992,1.80652496,90.919,90.841,78.47921781]
[1645906122293,16.5171,90.91,90.841,78.47921781]
[1645906122493,28.94736498,90.909,90.841,78.47921781]
[1645906122692,1.61450827,90.908,90.841,78.47921781]
[1645906124896,16.5187,90.9,90.841,78.47921781]
[1645906125095,1.46168781,90.899,90.841,78.47921781]
[1645906125495,24.6235,90.898,90.841,78.47921781]
[1645906136321,4.401,90.919,90.842,110.2]
[1645906136523,1.85454961,90.939,90.842,118.55]
[1645906136721,27.3726,90.985,90.842,118.55]
[1645906136722,5.82524467,90.976,90.851,110.2]
[1645906136923,7.88488968,90.975,90.852,0.25]
[1645906137121,4.399,90.974,90.853,110.2]
[1645906137325,24.30639854,90.973,90.854,2.50844429]
[1645906137522,24.30639854,90.973,90.856,110.2]
[1645906137721,24.30639854,90.973,90.871,110.2]
[1645906137922,24.30639854,90.973,90.873,110.2]
[1645906138123,24.30639854,90.973,90.874,0.25]
[1645906138322,1.74231254,90.972,90.873,110.2]
[1645906138522,25.63051254,90.972,90.881,110.2]
[1645906138725,25.63051254,90.972,90.88,15.86]
[1645906138925,25.63051254,90.972,90.882,2.74678921]
[1645906139124,25.63051254,90.972,90.883,23.5557]
[1645906139424,25.63051254,90.972,90.884,112.94678921]
[1645906139624,23.8882,90.972,90.891,44.14554188]
[1645906139828,1.49013479,90.971,90.891,44.14554188]
[1645906140436,23.8882,90.972,90.892,46.5023015]
[1645906140628,23.8882,90.972,90.9,16.5033]
[1645906140829,5.99332708,91.009,90.9,32.3633]
[1645906141032,24.5054,91.008,90.901,133.39201473]
[1645906141228,24.5054,91.008,90.901,151.46588326]
[1645906141428,25.81710581,90.99,90.903,110.2]
[1645906141828,25.81710581,90.99,90.904,2.74678921]
[1645906142027,25.81710581,90.99,90.906,110.2]
[1645906142531,1.79967182,91.007,90.92,16.4982]
[1645906143530,25.49159147,91.006,90.921,166.48902659]
[1645906143731,1.57212344,91.005,90.921,166.48902659]
[1645906143931,1.57212344,91.005,90.93,16.4981]
[1645906144331,4.397,91.004,90.93,16.4981]
[1645906145336,4.397,91.004,90.921,56.28902659]
[1645906145534,1.65704834,90.999,90.921,56.28902659]
[1645906145734,4.397,90.998,90.921,56.28902659]
[1645906146337,28.91903224,90.997,90.921,56.28902659]
[1645906146634,3.40578146,90.989,90.921,56.28902659]
[1645906146835,7.80278146,90.989,90.921,56.28902659]
[1645906148136,3.40578146,90.989,90.921,56.28902659]
[1645906149437,7.80278146,90.989,90.907,24.2928]
[1645906149736,1.58236275,90.979,90.907,24.2928]
[1645906149936,24.69416275,90.979,90.907,24.2928]
[1645906150140,1.6421109,90.978,90.907,24.2928]
[1645906150339,1.6421109,90.978,90.908,45.56385765]
[1645906151338,23.1118,90.979,90.908,45.56385765]
[1645906152141,27.5098,90.979,90.908,45.56385765]
[1645906152539,23.1118,90.979,90.908,45.56385765]
[1645906156943,23.1118,90.979,90.91,16.5016]
[1645906157144,23.1118,90.979,90.911,110.2]
[1645906157545,23.1118,90.979,90.912,2.74678921]
[1645906157745,4.398,91.008,90.912,2.74678921]
[1645906157948,4.397,91.009,90.921,110.2]
[1645906158151,20.32605322,91.015,90.923,110.2]
[1645906158348,20.32605322,91.015,90.925,110.2]
[1645906158947,20.32605322,91.015,90.926,2.74678921]
[1645906159146,25.1119315,91.019,90.926,2.74678921]
[1645906159348,25.1119315,91.019,90.926,32.43880394]
[1645906159547,23.5329,91.019,90.941,110.2]
[1645906159748,23.5329,91.019,90.943,110.2]
[1645906160176,23.5329,91.019,90.945,110.2]
[1645906160376,23.8175505,91.033,90.945,110.2]
[1645906160880,1.51617476,91.048,90.961,110.2]
[1645906161077,4.394,91.047,90.961,110.2]
[1645906161476,4.394,91.047,90.961,107.7]
[1645906161679,26.89779493,91.046,90.963,107.7]
[1645906161876,1.8339854,91.045,90.963,107.7]
[1645906162479,4.394,91.044,90.963,107.7]
[1645906162678,1.8339854,91.045,90.963,107.7]
[1645906164383,1.8339854,91.045,90.964,2.74678921]
[1645906166585,6.2279854,91.045,90.964,2.74678921]
[1645906166986,1.8339854,91.045,90.964,18.98218921]
[1645906168087,1.8339854,91.045,90.97,16.4906]
[1645906168288,1.8339854,91.045,90.971,107.7]
[1645906168692,23.5983,91.051,90.971,107.7]
[1645906168892,23.5983,91.051,90.972,2.74678921]
[1645906169090,23.5983,91.051,90.973,107.7]
[1645906169289,23.5983,91.051,90.973,130.89201473]
[1645906169489,23.5983,91.051,90.974,2.74678921]
[1645906169690,23.5983,91.051,90.975,107.7]
[1645906169890,23.5983,91.051,90.977,107.7]
[1645906170490,23.5983,91.051,90.991,107.7]
[1645906170689,23.5983,91.051,90.993,107.7]
[1645906173490,23.5983,91.051,90.993,16.1317]
[1645906176096,23.5983,91.051,90.993,13.6317]
[1645906176294,23.5983,91.051,90.993,123.8317]
[1645906176896,23.5983,91.051,91.0,16.4854]
[1645906177297,1.73550106,91.078,91.001,112.94678921]
[1645906177496,4.394,91.079,91.003,110.2]
[1645906177698,6.1750608,91.098,91.003,110.2]
[1645906177896,6.1750608,91.098,91.003,112.94678921]
[1645906178096,26.35151895,91.097,91.003,112.94678921]
[1645906178296,5.83637582,91.096,91.002,24.1862]
[1645906178719,10.98350806,91.096,91.003,110.2]
[1645906178897,5.83637582,91.096,91.003,110.2]
[1645906179200,5.14713224,91.095,91.003,110.2]
[1645906179396,4.393,91.094,91.003,110.2]
[1645906179597,16.4841,91.09,91.01,16.4836]
[1645906179798,5.92798764,91.089,91.011,50.09786855]
[1645906180204,24.6988,91.088,91.011,50.09786855]
[1645906180400,6.02543172,91.087,91.011,50.09786855]
[1645906180598,1.63243172,91.087,91.011,50.09786855]
[1645906182706,24.6988,91.088,91.011,50.09786855]
[1645906182707,1.06202658,91.079,91.011,50.09786855]
[1645906182904,2.88040257,91.079,91.011,50.09786855]
[1645906183103,4.393,91.078,91.011,50.09786855]
[1645906183303,1.57088419,91.076,91.011,50.09786855]
[1645906183904,16.4878,91.07,91.002,24.1862]
[1645906184105,1.7596152,91.069,91.002,24.1862]
[1645906184706,6.11510394,91.076,91.002,24.1862]
[1645906184908,6.11510394,91.076,91.003,57.71978091]
[1645906185106,1.72210394,91.076,91.003,167.91978091]
[1645906185306,23.4064,91.077,91.003,170.66657012]
[1645906185707,23.4064,91.077,91.004,2.74678921]
[1645906186915,23.4064,91.077,91.02,16.4816]
[1645906187316,23.4064,91.077,91.021,110.2]
[1645906187515,23.4064,91.077,91.02,16.4816]
[1645906187919,23.4064,91.077,91.021,50.50807544]
[1645906191024,23.4064,91.077,91.022,110.2]
[1645906193431,1.7646864,91.106,91.031,110.2]
[1645906193627,23.5356,91.098,91.031,110.2]
[1645906194435,23.5356,91.098,91.04,16.4779]
[1645906194636,23.5356,91.098,91.041,158.00028971]
[1645906195038,23.5356,91.098,91.041,47.80028971]
[1645906196239,1.3672566,91.097,91.02,32.696]
[1645906196839,1.3672566,91.097,91.0,2.74678921]
[1645906197038,4.392,91.096,90.992,126.9323]
[1645906197240,4.392,91.096,91.016,47.0699632]
[1645906197440,4.9261821,91.096,91.016,47.0699632]
[1645906197841,1.3672566,91.097,91.016,47.0699632]
[1645906198040,4.392,91.096,90.993,48.4792]
[1645906198243,16.4842,91.09,90.993,48.4792]
[1645906198442,6.10757693,91.089,90.993,48.4792]
[1645906198844,6.64175903,91.089,90.993,48.4792]
[1645906199040,6.10757693,91.089,90.994,53.51162108]
[1645906199243,16.4879,91.08,90.994,53.51162108]
[1645906199444,6.7447739,91.079,90.994,53.51162108]
[1645906199743,29.9981739,91.079,90.994,53.51162108]
[1645906199941,1.56727982,91.078,90.994,53.51162108]
[1645906200142,4.393,91.077,90.994,53.51162108]
[1645906200349,16.4904,91.07,90.994,53.51162108]
[1645906200545,1.72255987,91.069,90.994,53.51162108]
[1645906200746,23.7717,91.068,90.994,53.51162108]
[1645906200946,1.45974166,91.067,90.994,53.51162108]
[1645906201547,16.4908,91.06,90.994,53.51162108]
[1645906201748,25.88759963,91.059,90.97,16.4908]
[1645906201948,1.62094342,91.058,90.97,16.4908]
[1645906202348,1.62094342,91.058,90.97,33.0639]
[1645906202553,22.6546,91.057,90.97,33.0639]
[1645906202751,1.67163358,91.056,90.971,59.09425603]
[1645906202956,8.01163358,91.056,90.971,59.09425603]
[1645906203150,16.4913,91.05,90.971,59.09425603]
[1645906203351,1.76150986,91.049,90.971,59.09425603]
[1645906206256,1.76150986,91.049,90.964,2.74678921]
[1645906206452,4.394,91.048,90.952,2.74678921]
[1645906206853,2.21260711,91.047,90.952,2.74678921]
[1645906207052,110.2,91.045,90.952,2.74678921]
[1645906207253,6.21252419,91.044,90.953,43.28107128]
[1645906207454,15.86,91.04,90.953,43.28107128]
[1645906207654,6.24555538,91.039,90.953,43.28107128]
[1645906208253,6.24555538,91.039,90.954,2.74678921]
[1645906212054,1.85155538,91.039,90.954,2.74678921]
[1645906213861,1.85155538,91.039,90.96,16.4925]
[1645906214057,24.7228,91.046,90.961,110.2]
[1645906214357,24.7228,91.046,90.961,28.01880394]
[1645906214557,24.7228,91.046,90.962,25.27201473]
[1645906214957,24.7228,91.046,90.962,135.47201473]
[1645906215461,24.7228,91.046,90.97,16.4906]
[1645906216159,24.7228,91.046,90.971,22.531]
[1645906217864,1.65049433,91.045,90.97,16.4242]
[1645906218160,4.394,91.044,90.954,13.93174599]
[1645906218560,5.4623642,91.044,90.953,43.28107128]
[1645906218759,4.394,91.044,90.953,43.28107128]
[1645906219162,1.0683642,91.043,90.953,43.28107128]
[1645906219463,1.65049433,91.045,90.953,43.28107128]
[1645906219464,4.394,91.042,90.953,43.28107128]
[1645906219661,1.0683642,91.043,90.953,43.28107128]
[1645906219862,4.394,91.042,90.953,43.28107128]
[1645906220262,4.394,91.044,90.953,43.28107128]
[1645906220461,1.0683642,91.041,90.953,43.28107128]
[1645906220663,20.254,91.04,90.953,43.28107128]
[1645906221060,1.54960818,91.039,90.953,43.28107128]
[1645906221261,4.394,91.038,90.953,43.28107128]
[1645906222063,2.21260711,91.037,90.953,43.28107128]
[1645906222263,4.394,91.036,90.953,43.28107128]
[1645906222462,16.4966,91.02,90.953,43.28107128]
[1645906222663,4.60107232,91.018,90.953,43.28107128]
[1645906236102,24.413,91.019,90.954,25.27201473]
[1645906236699,24.413,91.019,90.955,4.396]
[1645906237099,24.413,91.019,90.956,25.27201473]
[1645906238504,24.413,91.019,90.96,16.4926]
[1645906244412,24.413,91.019,90.961,110.2]
[1645906244611,24.109,91.029,90.97,16.4906]
[1645906245412,24.109,91.029,90.971,110.2]
[1645906245912,16.491,91.06,90.971,110.2]
[1645906246113,16.491,91.06,90.981,110.2]
[1645906246311,16.491,91.06,90.982,133.6341]
[1645906246710,20.24135484,91.059,90.983,42.91517091]
[1645906249716,16.4912,91.05,90.983,42.91517091]
[1645906249919,1.84141354,91.049,90.983,42.91517091]
[1645906250120,23.1029,91.048,90.983,42.91517091]
[1645906250316,1.44411547,91.047,90.983,42.91517091]
[1645906254523,5.13781801,91.046,90.983,42.91517091]
[1645906258627,5.13781801,91.046,90.982,23.4341]
[1645906258827,5.13781801,91.046,90.972,4.394]
[1645906259028,26.97958255,91.045,90.972,4.394]
[1645906259227,111.74269409,91.044,90.951,23.4561]
[1645906259526,16.4985,91.01,90.951,23.4561]
[1645906259728,33.89250509,91.009,90.951,23.4561]
[1645906259928,6.17305237,91.008,90.932,24.6303]
[1645906260328,2.97115134,91.007,90.932,24.6303]
[1645906260532,4.397,91.006,90.932,24.6303]
[1645906260827,4.397,91.006,90.932,77.14571945]
[1645906261451,16.5003,91.0,90.932,77.14571945]
[1645906261650,1.54835196,90.999,90.932,77.14571945]
[1645906262050,1.46750203,90.997,90.932,77.14571945]
[1645906265152,5.67,91.01,90.932,77.14571945]